[Event "Late-Titled-Tuesday-Blitz-May-14-2024"]
[Site "Chess.com"]
[Date "2024.05.14"]
[Round "7"]
[White "Naruto-K"]
[Black "N_Mullodzhanov"]
[Result "1-0"]
[WhiteElo "2507"]
[BlackElo "2579"]
[TimeControl "180+1"]
[EndTime "15:17:39 PDT"]
[Termination "Naruto-K won by checkmate"]

1. Nf3 {[%clk 0:02:56]} 1... Nf6 {[%clk 0:02:59.9]} 2. c4 {[%clk 0:02:53.5]}
2... d6 {[%clk 0:02:59.3]} 3. d4 {[%clk 0:02:52.6]} 3... g6 {[%clk 0:02:59.5]}
4. g3 {[%clk 0:02:52.7]} 4... Bg7 {[%clk 0:02:59.8]} 5. Bg2 {[%clk 0:02:53.6]}
5... O-O {[%clk 0:03:00.1]} 6. O-O {[%clk 0:02:54.2]} 6... c5 {[%clk 0:02:57.4]}
7. dxc5 {[%clk 0:02:47.6]} 7... dxc5 {[%clk 0:02:57.6]} 8. Qb3 {[%clk
0:02:42.6]} 8... Nc6 {[%clk 0:02:52.8]} 9. Rd1 {[%clk 0:02:40.5]} 9... Qb6
{[%clk 0:02:52.5]} 10. Nc3 {[%clk 0:02:33.2]} 10... Qxb3 {[%clk 0:02:48.1]} 11.
axb3 {[%clk 0:02:34.1]} 11... Bf5 {[%clk 0:02:48.4]} 12. Ra3 {[%clk 0:01:34.6]}
12... a6 {[%clk 0:02:34.2]} 13. Be3 {[%clk 0:01:22.6]} 13... Rfd8 {[%clk
0:02:13.7]} 14. Rc1 {[%clk 0:00:34.4]} 14... Ne4 {[%clk 0:02:07.5]} 15. g4
{[%clk 0:00:26.6]} 15... Nxc3 {[%clk 0:02:02]} 16. bxc3 {[%clk 0:00:27.5]} 16...
Bxg4 {[%clk 0:01:59.2]} 17. Bxc5 {[%clk 0:00:28.2]} 17... Rac8 {[%clk
0:01:32.7]} 18. Bb6 {[%clk 0:00:26.9]} 18... Rd7 {[%clk 0:01:29]} 19. e3 {[%clk
0:00:20.9]} 19... e5 {[%clk 0:01:28.7]} 20. Raa1 {[%clk 0:00:15.2]} 20... Nb8
{[%clk 0:01:17.4]} 21. h3 {[%clk 0:00:12]} 21... Bf5 {[%clk 0:01:04.6]} 22. Ng5
{[%clk 0:00:07.7]} 22... h6 {[%clk 0:00:59.9]} 23. Ne4 {[%clk 0:00:07.5]} 23...
Rc6 {[%clk 0:00:55.5]} 24. c5 {[%clk 0:00:07.7]} 24... Be6 {[%clk 0:00:44.8]}
25. c4 {[%clk 0:00:07.8]} 25... f5 {[%clk 0:00:43.6]} 26. Nc3 {[%clk 0:00:08.3]}
26... e4 {[%clk 0:00:41.9]} 27. Rab1 {[%clk 0:00:07.4]} 27... Rd3 {[%clk
0:00:34.7]} 28. Nd5 {[%clk 0:00:07.1]} 28... Bxd5 {[%clk 0:00:33.9]} 29. cxd5
{[%clk 0:00:08]} 29... Rxd5 {[%clk 0:00:34.3]} 30. Bf1 {[%clk 0:00:08.5]} 30...
Rd2 {[%clk 0:00:29.6]} 31. Rd1 {[%clk 0:00:06.6]} 31... Rd7 {[%clk 0:00:18.2]}
32. b4 {[%clk 0:00:03.8]} 32... Kf8 {[%clk 0:00:13.5]} 33. b5 {[%clk 0:00:04.2]}
33... Rc8 {[%clk 0:00:09]} 34. bxa6 {[%clk 0:00:04.7]} 34... bxa6 {[%clk
0:00:09]} 35. Rxd7 {[%clk 0:00:04.5]} 35... Nxd7 {[%clk 0:00:09.6]} 36. Bxa6
{[%clk 0:00:05.2]} 36... Rb8 {[%clk 0:00:07]} 37. Bc4 {[%clk 0:00:04.4]} 37...
Ke8 {[%clk 0:00:02.9]} 38. Rb5 {[%clk 0:00:04.5]} 38... Nxc5 {[%clk 0:00:02.7]}
39. Bxc5 {[%clk 0:00:04.1]} 39... Rc8 {[%clk 0:00:03.2]} 40. Bd5 {[%clk
0:00:02.6]} 40... Be5 {[%clk 0:00:02.3]} 41. Kg2 {[%clk 0:00:03.1]} 41... Rd8
{[%clk 0:00:02.7]} 42. Bc6+ {[%clk 0:00:03]} 42... Kf7 {[%clk 0:00:03.5]} 43.
Rb7+ {[%clk 0:00:03.7]} 43... Kf6 {[%clk 0:00:03.8]} 44. Bb5 {[%clk 0:00:03.3]}
44... Rd5 {[%clk 0:00:02.8]} 45. Be7+ {[%clk 0:00:03.7]} 45... Ke6 {[%clk
0:00:02.5]} 46. Bc4 {[%clk 0:00:04.3]} 46... g5 {[%clk 0:00:02.5]} 47. Rb5
{[%clk 0:00:04.4]} 47... Kxe7 {[%clk 0:00:01.8]} 48. Rxd5 {[%clk 0:00:05.3]}
48... Bf6 {[%clk 0:00:02.5]} 49. Rc5 {[%clk 0:00:05.1]} 49... h5 {[%clk
0:00:03.3]} 50. Rc6 {[%clk 0:00:05.8]} 50... Be5 {[%clk 0:00:03.2]} 51. Re6+
{[%clk 0:00:06.7]} 51... Kd7 {[%clk 0:00:03.2]} 52. Rxe5 {[%clk 0:00:07.6]}
52... f4 {[%clk 0:00:04]} 53. Rxg5 {[%clk 0:00:08.1]} 53... f3+ {[%clk
0:00:04.8]} 54. Kg3 {[%clk 0:00:08.8]} 54... Kd6 {[%clk 0:00:04.3]} 55. Kf4
{[%clk 0:00:09.7]} 55... h4 {[%clk 0:00:04.5]} 56. Kxe4 {[%clk 0:00:10.1]} 56...
Kc6 {[%clk 0:00:05.2]} 57. Kd4 {[%clk 0:00:10.3]} 57... Kd6 {[%clk 0:00:05]} 58.
Rg6+ {[%clk 0:00:10.9]} 58... Kc7 {[%clk 0:00:05.3]} 59. Ke5 {[%clk 0:00:11.7]}
59... Kd7 {[%clk 0:00:04.4]} 60. Bd5 {[%clk 0:00:12.4]} 60... Kc8 {[%clk
0:00:04.3]} 61. Kd6 {[%clk 0:00:12.8]} 61... Kb8 {[%clk 0:00:04.8]} 62. Rg7
{[%clk 0:00:12.8]} 62... Kc8 {[%clk 0:00:05.3]} 63. Bc6 {[%clk 0:00:12.8]} 63...
Kb8 {[%clk 0:00:05.6]} 64. Kc5 {[%clk 0:00:12.3]} 64... Kc8 {[%clk 0:00:06.2]}
65. Kb6 {[%clk 0:00:12.9]} 65... Kd8 {[%clk 0:00:06.8]} 66. Rf7 {[%clk
0:00:13.1]} 66... Kc8 {[%clk 0:00:06.8]} 67. Rd7 {[%clk 0:00:13.6]} 67... Kb8
{[%clk 0:00:06.3]} 68. Rd8# {[%clk 0:00:14.5]} 1-0

[Event "Late-Titled-Tuesday-Blitz-May-14-2024"]
[Site "Chess.com"]
[Date "2024.05.14"]
[Round "7"]
[White "DominguezOnYoutube"]
[Black "penguingm1"]
[Result "1-0"]
[WhiteElo "3017"]
[BlackElo "2858"]
[TimeControl "180+1"]
[EndTime "15:17:40 PDT"]
[Termination "DominguezOnYoutube won by resignation"]

1. e4 {[%clk 0:03:00.9]} 1... e5 {[%clk 0:03:00.2]} 2. Nf3 {[%clk 0:03:00.9]}
2... Nc6 {[%clk 0:03:00.7]} 3. Bb5 {[%clk 0:03:01]} 3... g6 {[%clk 0:03:00.9]}
4. c3 {[%clk 0:02:56.4]} 4... a6 {[%clk 0:03:00.6]} 5. Bc4 {[%clk 0:02:55.7]}
5... f5 {[%clk 0:03:00.5]} 6. d3 {[%clk 0:02:47.5]} 6... Bg7 {[%clk 0:02:52.8]}
7. O-O {[%clk 0:02:39.2]} 7... f4 {[%clk 0:02:40.5]} 8. b4 {[%clk 0:02:18]} 8...
d6 {[%clk 0:02:31.2]} 9. Qb3 {[%clk 0:02:15.7]} 9... Nh6 {[%clk 0:01:44.2]} 10.
d4 {[%clk 0:02:15.4]} 10... g5 {[%clk 0:01:14.5]} 11. dxe5 {[%clk 0:02:15]}
11... dxe5 {[%clk 0:01:09]} 12. Rd1 {[%clk 0:02:14]} 12... Qf6 {[%clk
0:01:09.4]} 13. a4 {[%clk 0:01:56.4]} 13... g4 {[%clk 0:01:06.5]} 14. Ne1 {[%clk
0:01:56.4]} 14... Nf7 {[%clk 0:01:00.4]} 15. Qa2 {[%clk 0:01:36.5]} 15... Nd6
{[%clk 0:00:43.9]} 16. Bd5 {[%clk 0:01:23.8]} 16... Ne7 {[%clk 0:00:44]} 17. Bb3
{[%clk 0:01:23.6]} 17... Nxe4 {[%clk 0:00:43.9]} 18. Bf7+ {[%clk 0:01:19.7]}
18... Qxf7 {[%clk 0:00:43.1]} 19. Rd8+ {[%clk 0:01:19.1]} 19... Kxd8 {[%clk
0:00:43.7]} 20. Qxf7 {[%clk 0:01:19.2]} 20... Rg8 {[%clk 0:00:43.2]} 21. Nd2
{[%clk 0:01:02.8]} 21... Nd6 {[%clk 0:00:40]} 22. Qb3 {[%clk 0:01:03.3]} 22...
Rf8 {[%clk 0:00:38.6]} 23. Ba3 {[%clk 0:00:59.1]} 23... b5 {[%clk 0:00:37]} 24.
Rd1 {[%clk 0:00:58.6]} 24... Ke8 {[%clk 0:00:35.2]} 25. Bb2 {[%clk 0:00:54]}
25... Bd7 {[%clk 0:00:32.2]} 26. Nd3 {[%clk 0:00:53.3]} 26... bxa4 {[%clk
0:00:21.2]} 27. Qa2 {[%clk 0:00:53.1]} 27... Bf5 {[%clk 0:00:18.6]} 28. Nc5
{[%clk 0:00:51.2]} 28... Bf6 {[%clk 0:00:13.1]} 29. Re1 {[%clk 0:00:50.2]} 29...
a5 {[%clk 0:00:12.3]} 30. Ba3 {[%clk 0:00:44.2]} 30... axb4 {[%clk 0:00:12.2]}
31. Bxb4 {[%clk 0:00:44.9]} 31... Nc6 {[%clk 0:00:09.6]} 32. Qd5 {[%clk
0:00:43.6]} 32... Bd7 {[%clk 0:00:05.8]} 33. Nxd7 {[%clk 0:00:42.3]} 33... Kxd7
{[%clk 0:00:06.7]} 34. Bxd6 {[%clk 0:00:39.4]} 34... cxd6 {[%clk 0:00:07.3]} 35.
Ne4 {[%clk 0:00:39.5]} 35... Be7 {[%clk 0:00:06.3]} 36. Nc5+ {[%clk 0:00:39.9]}
36... Kc7 {[%clk 0:00:07]} 37. Ne6+ {[%clk 0:00:40.2]} 37... Kd7 {[%clk
0:00:06.8]} 38. Nxf8+ {[%clk 0:00:38.6]} 38... Rxf8 {[%clk 0:00:07.7]} 39. Ra1
{[%clk 0:00:37.7]} 39... Ra8 {[%clk 0:00:07.1]} 40. Qb5 {[%clk 0:00:37.9]} 40...
Rb8 {[%clk 0:00:03]} 41. Qxa4 {[%clk 0:00:37.6]} 41... Bd8 {[%clk 0:00:01.9]}
42. Qa2 {[%clk 0:00:34.2]} 42... Ke7 {[%clk 0:00:01.4]} 43. Rb1 {[%clk
0:00:33.8]} 43... Rc8 {[%clk 0:00:01.8]} 44. Qa6 {[%clk 0:00:31.5]} 44... Rc7
{[%clk 0:00:02.1]} 45. Rb7 {[%clk 0:00:31.6]} 45... Kd7 {[%clk 0:00:02.8]} 46.
Rxc7+ {[%clk 0:00:30.5]} 46... Bxc7 {[%clk 0:00:03.7]} 47. Qd3 {[%clk
0:00:30.5]} 47... Ne7 {[%clk 0:00:04.1]} 48. Qxh7 {[%clk 0:00:30.3]} 48... d5
{[%clk 0:00:04.2]} 49. Qg7 {[%clk 0:00:29.5]} 49... g3 {[%clk 0:00:04.2]} 50.
hxg3 {[%clk 0:00:29.9]} 50... fxg3 {[%clk 0:00:05.1]} 51. Qxg3 {[%clk
0:00:29.9]} 51... e4 {[%clk 0:00:05.7]} 52. Qg4+ {[%clk 0:00:29.9]} 52... Kc6
{[%clk 0:00:06.3]} 53. Qe6+ {[%clk 0:00:29.6]} 53... Bd6 {[%clk 0:00:06.9]} 54.
g4 {[%clk 0:00:30]} 54... Kc5 {[%clk 0:00:06.7]} 55. g5 {[%clk 0:00:30.1]} 55...
Nc6 {[%clk 0:00:07.4]} 56. g6 {[%clk 0:00:29.5]} 56... Be5 {[%clk 0:00:08.1]}
57. Qf7 {[%clk 0:00:26.4]} 57... Bxc3 {[%clk 0:00:07]} 58. g7 {[%clk 0:00:26.9]}
58... Bxg7 {[%clk 0:00:05.8]} 59. Qxg7 {[%clk 0:00:27.5]} 59... Nd4 {[%clk
0:00:04.6]} 60. Qf8+ {[%clk 0:00:27.2]} 60... Kc4 {[%clk 0:00:05]} 61. Kf1
{[%clk 0:00:27.6]} 61... Nf3 {[%clk 0:00:03.8]} 62. Qc8+ {[%clk 0:00:27.7]}
62... Kd3 {[%clk 0:00:03.9]} 63. Qa6+ {[%clk 0:00:27]} 63... Kd4 {[%clk
0:00:04.5]} 64. Qb6+ {[%clk 0:00:26.6]} 64... Kd3 {[%clk 0:00:04.6]} 65. Qb3+
{[%clk 0:00:26.6]} 65... Kd4 {[%clk 0:00:04.9]} 66. Qe3+ {[%clk 0:00:26.6]}
66... Ke5 {[%clk 0:00:05.5]} 67. Qc5 {[%clk 0:00:25.9]} 67... Nd2+ {[%clk
0:00:04.9]} 68. Ke2 {[%clk 0:00:25.5]} 68... Nf3 {[%clk 0:00:05.5]} 69. Ke3
{[%clk 0:00:25.2]} 69... Ng5 {[%clk 0:00:05.6]} 70. Qc7+ {[%clk 0:00:20.7]}
70... Kf5 {[%clk 0:00:03.3]} 71. Qf4+ {[%clk 0:00:19.8]} 71... Kg6 {[%clk
0:00:03.9]} 72. Qd6+ {[%clk 0:00:19.3]} 1-0

[Event "Late-Titled-Tuesday-Blitz-May-14-2024"]
[Site "Chess.com"]
[Date "2024.05.14"]
[Round "7"]
[White "MagnusCarlsen"]
[Black "GMBenjaminBok"]
[Result "0-1"]
[WhiteElo "3197"]
[BlackElo "3056"]
[TimeControl "180+1"]
[EndTime "15:17:44 PDT"]
[Termination "GMBenjaminBok won by resignation"]

1. b4 {[%clk 0:02:59.2]} 1... d5 {[%clk 0:02:59.6]} 2. Bb2 {[%clk 0:02:58.7]}
2... Bf5 {[%clk 0:03:00.1]} 3. e3 {[%clk 0:02:51.6]} 3... e6 {[%clk 0:03:00.6]}
4. c4 {[%clk 0:02:51.1]} 4... Nf6 {[%clk 0:03:00.2]} 5. cxd5 {[%clk 0:02:49.9]}
5... exd5 {[%clk 0:02:59]} 6. a3 {[%clk 0:02:49.9]} 6... Bd6 {[%clk 0:02:57.2]}
7. Nf3 {[%clk 0:02:48.2]} 7... O-O {[%clk 0:02:54.6]} 8. Nd4 {[%clk 0:02:44.8]}
8... Bg6 {[%clk 0:02:47]} 9. h4 {[%clk 0:02:43.9]} 9... h5 {[%clk 0:02:31.7]}
10. Be2 {[%clk 0:02:43]} 10... a5 {[%clk 0:02:28.9]} 11. Nb5 {[%clk 0:02:33.4]}
11... axb4 {[%clk 0:02:17.6]} 12. Nxd6 {[%clk 0:02:30.3]} 12... Qxd6 {[%clk
0:02:18.5]} 13. axb4 {[%clk 0:02:29.8]} 13... Rxa1 {[%clk 0:02:19.4]} 14. Bxa1
{[%clk 0:02:29.4]} 14... Qxb4 {[%clk 0:02:19.1]} 15. Bxf6 {[%clk 0:02:28.6]}
15... gxf6 {[%clk 0:01:39.4]} 16. Nc3 {[%clk 0:02:28]} 16... Rd8 {[%clk
0:01:39.3]} 17. Bxh5 {[%clk 0:02:20.1]} 17... d4 {[%clk 0:01:39.5]} 18. exd4
{[%clk 0:01:45]} 18... Bxh5 {[%clk 0:01:29.2]} 19. Qxh5 {[%clk 0:01:43.3]} 19...
Re8+ {[%clk 0:01:28.8]} 20. Kf1 {[%clk 0:01:38.5]} 20... Qc4+ {[%clk 0:01:03.6]}
21. Kg1 {[%clk 0:01:08.7]} 21... Re1+ {[%clk 0:01:01.1]} 22. Kh2 {[%clk
0:01:08.8]} 22... Rxh1+ {[%clk 0:01:02]} 23. Kxh1 {[%clk 0:01:09.3]} 23... Qxd4
{[%clk 0:00:54.4]} 24. Nd5 {[%clk 0:00:59.6]} 24... Qxf2 {[%clk 0:00:39.1]} 25.
Ne7+ {[%clk 0:00:59]} 25... Kf8 {[%clk 0:00:29.9]} 26. Nf5 {[%clk 0:00:59.9]}
26... Ke8 {[%clk 0:00:24.2]} 27. Qg4 {[%clk 0:00:53.5]} 27... Nd7 {[%clk
0:00:20.3]} 28. d4 {[%clk 0:00:50.2]} 28... b5 {[%clk 0:00:19.4]} 29. h5 {[%clk
0:00:48.8]} 29... Nf8 {[%clk 0:00:17.4]} 30. Qe4+ {[%clk 0:00:36.9]} 30... Ne6
{[%clk 0:00:16.7]} 31. h6 {[%clk 0:00:34.9]} 31... Qf1+ {[%clk 0:00:14.3]} 32.
Kh2 {[%clk 0:00:34.5]} 32... Qf4+ {[%clk 0:00:15.2]} 33. Qxf4 {[%clk 0:00:34.5]}
33... Nxf4 {[%clk 0:00:16.1]} 34. h7 {[%clk 0:00:33.3]} 34... Ng6 {[%clk
0:00:16.2]} 35. d5 {[%clk 0:00:33.8]} 35... b4 {[%clk 0:00:15.2]} 36. Nd4 {[%clk
0:00:33.9]} 36... Kf8 {[%clk 0:00:14.9]} 37. Kg3 {[%clk 0:00:34.2]} 37... Kg7
{[%clk 0:00:15.2]} 38. Kf3 {[%clk 0:00:34.9]} 38... Kxh7 {[%clk 0:00:15.4]} 39.
Ke2 {[%clk 0:00:33.2]} 39... Ne7 {[%clk 0:00:15.5]} 40. Kd3 {[%clk 0:00:28.9]}
40... Nxd5 {[%clk 0:00:15.8]} 41. Kc4 {[%clk 0:00:29.5]} 41... Ne3+ {[%clk
0:00:16]} 42. Kxb4 {[%clk 0:00:30.4]} 42... Nxg2 {[%clk 0:00:16.3]} 43. Nb5
{[%clk 0:00:30.6]} 43... f5 {[%clk 0:00:12.4]} 44. Kc4 {[%clk 0:00:29.1]} 44...
f4 {[%clk 0:00:11]} 45. Kd3 {[%clk 0:00:28.5]} 45... Kg6 {[%clk 0:00:11.4]} 46.
Nxc7 {[%clk 0:00:27.9]} 46... Kf5 {[%clk 0:00:11.4]} 47. Ke2 {[%clk 0:00:27.5]}
47... Nh4 {[%clk 0:00:11.5]} 48. Kf2 {[%clk 0:00:26.9]} 48... Kg4 {[%clk
0:00:11.4]} 49. Nd5 {[%clk 0:00:26.2]} 49... Ng6 {[%clk 0:00:11.7]} 50. Nf6+
{[%clk 0:00:25.9]} 50... Kf5 {[%clk 0:00:12.2]} 51. Nd5 {[%clk 0:00:26.1]} 51...
Ne5 {[%clk 0:00:12.7]} 52. Ke2 {[%clk 0:00:24.3]} 52... Ke4 {[%clk 0:00:12.4]}
53. Nc3+ {[%clk 0:00:23.2]} 53... Kf5 {[%clk 0:00:10.9]} 54. Nd5 {[%clk
0:00:21.9]} 54... f6 {[%clk 0:00:11.1]} 55. Kf2 {[%clk 0:00:21.3]} 55... Nf7
{[%clk 0:00:11.4]} 56. Kf3 {[%clk 0:00:20.3]} 56... Ng5+ {[%clk 0:00:11.7]} 57.
Kf2 {[%clk 0:00:20.8]} 57... Ke5 {[%clk 0:00:12.6]} 58. Nb6 {[%clk 0:00:20]}
58... Ke4 {[%clk 0:00:12.3]} 59. Nc4 {[%clk 0:00:19.9]} 59... f3 {[%clk
0:00:11.8]} 60. Nb6 {[%clk 0:00:13.9]} 60... Kf4 {[%clk 0:00:11.9]} 61. Nd5+
{[%clk 0:00:13.2]} 61... Ke5 {[%clk 0:00:12.2]} 62. Nb6 {[%clk 0:00:09.9]} 62...
Ke4 {[%clk 0:00:12.5]} 63. Nc4 {[%clk 0:00:09.8]} 63... Kf4 {[%clk 0:00:12.6]}
64. Kf1 {[%clk 0:00:05.8]} 64... Ne4 {[%clk 0:00:13]} 65. Nb6 {[%clk 0:00:03.6]}
65... Kg3 {[%clk 0:00:12.4]} 66. Nd5 {[%clk 0:00:04.5]} 66... Nd2+ {[%clk
0:00:10.9]} 67. Ke1 {[%clk 0:00:04.4]} 67... f2+ {[%clk 0:00:11.8]} 68. Kxd2
{[%clk 0:00:05.2]} 68... f1=Q {[%clk 0:00:12.5]} 0-1

[Event "Late-Titled-Tuesday-Blitz-May-14-2024"]
[Site "Chess.com"]
[Date "2024.05.14"]
[Round "7"]
[White "jefferyx"]
[Black "ChristopherYoo"]
[Result "1/2-1/2"]
[WhiteElo "3086"]
[BlackElo "3012"]
[TimeControl "180+1"]
[EndTime "15:17:45 PDT"]
[Termination "Game drawn - insufficient material"]

1. Nf3 {[%clk 0:03:00.9]} 1... c5 {[%clk 0:02:48.3]} 2. e4 {[%clk 0:02:59.8]}
2... Nc6 {[%clk 0:02:47.8]} 3. Bb5 {[%clk 0:02:59.3]} 3... g6 {[%clk 0:02:48.1]}
4. O-O {[%clk 0:02:57.1]} 4... Bg7 {[%clk 0:02:46.1]} 5. Re1 {[%clk 0:02:57.2]}
5... Nf6 {[%clk 0:02:44.8]} 6. c3 {[%clk 0:02:56.1]} 6... O-O {[%clk 0:02:43.7]}
7. d4 {[%clk 0:02:56.3]} 7... Qe8 {[%clk 0:02:44.6]} 8. d5 {[%clk 0:02:41.6]}
8... a6 {[%clk 0:02:43.3]} 9. Bf1 {[%clk 0:02:31.6]} 9... Nb8 {[%clk 0:02:42.9]}
10. e5 {[%clk 0:02:31.9]} 10... Ng4 {[%clk 0:02:43.1]} 11. h3 {[%clk 0:02:18.2]}
11... Nh6 {[%clk 0:02:43]} 12. g4 {[%clk 0:02:17]} 12... Qd8 {[%clk 0:02:40.7]}
13. Be3 {[%clk 0:02:15.7]} 13... f5 {[%clk 0:02:34.6]} 14. exf6 {[%clk 0:02:14]}
14... exf6 {[%clk 0:02:34.5]} 15. Bxc5 {[%clk 0:02:13.9]} 15... Re8 {[%clk
0:02:35.2]} 16. Rxe8+ {[%clk 0:02:11.3]} 16... Qxe8 {[%clk 0:02:36.1]} 17. Na3
{[%clk 0:02:09.8]} 17... b5 {[%clk 0:02:35.2]} 18. Qd2 {[%clk 0:02:02.1]} 18...
Qd8 {[%clk 0:02:35.3]} 19. Re1 {[%clk 0:01:52.6]} 19... d6 {[%clk 0:02:27.8]}
20. Qe3 {[%clk 0:01:14.8]} 20... Bb7 {[%clk 0:02:19.3]} 21. Bb6 {[%clk
0:01:06.7]} 21... Qf8 {[%clk 0:02:18]} 22. Qe6+ {[%clk 0:00:55]} 22... Nf7
{[%clk 0:02:12.8]} 23. c4 {[%clk 0:00:48.3]} 23... Bc8 {[%clk 0:02:09.6]} 24.
Qe8 {[%clk 0:00:47]} 24... Nd7 {[%clk 0:02:09.1]} 25. Ba5 {[%clk 0:00:46]} 25...
Nde5 {[%clk 0:02:05.1]} 26. Qxf8+ {[%clk 0:00:46]} 26... Kxf8 {[%clk 0:02:06]}
27. Nd4 {[%clk 0:00:45]} 27... f5 {[%clk 0:02:01.2]} 28. gxf5 {[%clk 0:00:38.7]}
28... gxf5 {[%clk 0:02:00.9]} 29. cxb5 {[%clk 0:00:30.4]} 29... axb5 {[%clk
0:01:57.5]} 30. Bb4 {[%clk 0:00:27.3]} 30... Ra4 {[%clk 0:01:53.5]} 31. Nac2
{[%clk 0:00:18.8]} 31... Rxa2 {[%clk 0:01:52.9]} 32. Ba3 {[%clk 0:00:15.2]}
32... Nc4 {[%clk 0:01:40.3]} 33. Bxc4 {[%clk 0:00:15]} 33... bxc4 {[%clk
0:01:41.2]} 34. Ne6+ {[%clk 0:00:15.7]} 34... Bxe6 {[%clk 0:01:41]} 35. dxe6
{[%clk 0:00:16.6]} 35... Ng5 {[%clk 0:01:41.2]} 36. Kg2 {[%clk 0:00:08.1]} 36...
Bxb2 {[%clk 0:01:36.6]} 37. Bxd6+ {[%clk 0:00:08.2]} 37... Ke8 {[%clk
0:01:37.3]} 38. Nb4 {[%clk 0:00:09]} 38... Ra5 {[%clk 0:01:14.2]} 39. f3 {[%clk
0:00:09.3]} 39... Bc3 {[%clk 0:01:03.2]} 40. Rc1 {[%clk 0:00:09.5]} 40... Bxb4
{[%clk 0:00:59]} 41. Bxb4 {[%clk 0:00:10.4]} 41... Ra2+ {[%clk 0:00:59]} 42. Kg3
{[%clk 0:00:11]} 42... Nxe6 {[%clk 0:00:46.7]} 43. Rxc4 {[%clk 0:00:11.3]} 43...
f4+ {[%clk 0:00:37.2]} 44. Kg4 {[%clk 0:00:11.2]} 44... Rg2+ {[%clk 0:00:35.1]}
45. Kf5 {[%clk 0:00:09.3]} 45... Kf7 {[%clk 0:00:35.6]} 46. Bd6 {[%clk
0:00:06.2]} 46... Rg5+ {[%clk 0:00:33.3]} 47. Ke4 {[%clk 0:00:06.4]} 47... Rh5
{[%clk 0:00:33.8]} 48. Bxf4 {[%clk 0:00:04.9]} 48... Rh4 {[%clk 0:00:24.6]} 49.
Ke3 {[%clk 0:00:04.9]} 49... Kg6 {[%clk 0:00:19]} 50. Re4 {[%clk 0:00:04.4]}
50... Kf5 {[%clk 0:00:18.7]} 51. Re5+ {[%clk 0:00:04.8]} 51... Kf6 {[%clk
0:00:18.4]} 52. Re4 {[%clk 0:00:05.3]} 52... Rxh3 {[%clk 0:00:17.5]} 53. Be5+
{[%clk 0:00:04.8]} 53... Kf5 {[%clk 0:00:17.4]} 54. Bc3 {[%clk 0:00:03.4]} 54...
Ng5 {[%clk 0:00:14.8]} 55. Rf4+ {[%clk 0:00:03.6]} 55... Kg6 {[%clk 0:00:14.1]}
56. Rf6+ {[%clk 0:00:03.9]} 56... Kh5 {[%clk 0:00:14.8]} 57. Rf5 {[%clk
0:00:04.5]} 57... h6 {[%clk 0:00:08.7]} 58. Kf2 {[%clk 0:00:04.7]} 58... Rh2+
{[%clk 0:00:07.4]} 59. Kg3 {[%clk 0:00:04.2]} 59... Rc2 {[%clk 0:00:08]} 60. Bd4
{[%clk 0:00:03.7]} 60... Rd2 {[%clk 0:00:02.2]} 61. Be3 {[%clk 0:00:03.2]} 61...
Rd3 {[%clk 0:00:02.9]} 62. Bxg5 {[%clk 0:00:03.5]} 62... hxg5 {[%clk 0:00:03.8]}
63. Re5 {[%clk 0:00:03.9]} 63... Rd1 {[%clk 0:00:03.5]} 64. f4 {[%clk
0:00:03.7]} 64... Rg1+ {[%clk 0:00:02.7]} 65. Kf2 {[%clk 0:00:04.1]} 65... Rg4
{[%clk 0:00:03]} 66. Rxg5+ {[%clk 0:00:04.7]} 66... Rxg5 {[%clk 0:00:03.7]} 67.
fxg5 {[%clk 0:00:05.6]} 67... Kxg5 {[%clk 0:00:04.4]} 1/2-1/2